bitfinex-derivatives/quotes_SOLF0:USTF0_20251201
["timestamp","ask_amount","ask_price","bid_price","bid_amount"]
[1764553955256,1.15866871,127.93,127.9,0.05866904]
[1764553956364,8.19366871,127.93,127.9,3.22866904]
[1764553957960,8.19366871,127.93,127.9,0.05866904]
[1764553959271,0.05866871,127.93,127.9,3.22866904]
[1764553962161,1.15866871,127.93,127.9,3.22866904]
[1764553962572,1.15866871,127.93,127.9,0.05866904]
[1764553964572,1.1,127.92,127.9,0.05866904]
[1764553965665,1.1,127.91,127.9,0.05866904]
[1764553970367,7.0355,127.92,127.9,0.05866904]
[1764553970566,8.1355,127.92,127.9,0.05866904]
[1764553972271,1.15866871,127.93,127.9,3.20866904]
[1764553973970,8.19356871,127.93,127.9,3.20866904]
[1764553974374,8.19356871,127.93,127.9,5.78902142]
[1764553976385,0.05866871,127.93,127.91,3.15]
[1764553979682,1.15866871,127.93,127.9,0.05866904]
[1764553979888,1.15866871,127.93,127.9,3.20866904]
[1764553980885,1.1,127.92,127.9,0.05866904]
[1764553981082,1.15866871,127.93,127.9,3.20866904]
[1764553981892,0.05866871,127.93,127.91,3.15]
[1764553983493,0.05866871,127.93,127.92,7.1813325]
[1764553983889,8.1308,128.01,127.96,3.15]
[1764553984191,1.1,128.01,127.98,3.15]
[1764553984379,1.1,128.01,127.95,7.1813325]
[1764553984792,1.1,127.98,127.97,0.05297839]
[1764553985395,7.08300048,127.99,127.97,3.20297839]
[1764553985590,7.08300048,127.99,127.97,0.05297839]
[1764553985784,8.18300048,127.99,127.97,0.05297839]
[1764553988488,7.08300048,127.99,127.98,3.15]
[1764553988689,7.08300048,127.99,127.97,3.20297839]
[1764553989090,0.05110048,127.99,127.97,3.20297839]
[1764553991700,1.15110048,127.99,127.97,0.05297839]
[1764553992303,1.1,127.98,127.97,0.05297839]
[1764553992801,1.15110048,127.99,127.97,0.05297839]
[1764553993296,0.05110048,127.99,127.97,3.20297839]
[1764554002311,1.09,127.98,127.97,0.05297839]
[1764554009613,1.09,127.96,127.92,3.29]
[1764554010014,4.0313325,127.99,127.92,3.29]
[1764554010015,1.09,127.98,127.92,3.29]
[1764554010615,0.04930285,127.96,127.95,3.29]
[1764554010824,1.09,128.01,127.95,3.29]
[1764554011809,1.09,128.01,127.97,0.05072346]
[1764554012013,0.05160689,127.99,127.97,0.05072346]
[1764554012210,8.22320689,127.99,127.97,0.05072346]
[1764554013317,0.05160689,127.99,127.97,3.41072346]
[1764554014317,118.0,128.01,127.97,4.08205596]
[1764554014516,118.0,128.01,127.98,3.36]
[1764554015115,1.14,128.04,127.98,3.36]
[1764554015517,1.19,128.01,128.0,0.05334412]
[1764554016518,1.19,127.98,127.95,3.36]
[1764554017317,1.19,127.97,127.92,3.36]
[1764554017628,1.24422955,127.96,127.93,3.40992158]
[1764554018117,0.05422955,127.96,127.93,3.40992158]
[1764554018522,1.19,127.95,127.93,0.04992158]
[1764554019128,8.2239,127.95,127.93,0.04992158]
[1764554019321,1.19,127.94,127.93,0.04992158]
[1764554019720,8.2239,127.95,127.93,0.04992158]
[1764554021419,1.19,127.94,127.93,0.04992158]
[1764554021619,8.2239,127.95,127.93,0.04992158]
[1764554027028,1.19,127.94,127.93,0.04992158]
[1764554029523,5.2213325,127.94,127.93,0.04992158]
[1764554030127,1.19,127.94,127.93,0.04992158]
[1764554030423,7.0339,127.95,127.93,0.04992158]
[1764554030622,7.0339,127.95,127.93,3.11992158]
[1764554030823,0.05422955,127.96,127.93,3.11992158]
[1764554030824,1.24422955,127.96,127.93,3.11992158]
[1764554032334,8.27752955,127.96,127.93,3.11992158]
[1764554033139,0.05422955,127.96,127.93,3.11992158]
[1764554034331,1.24422955,127.96,127.93,3.11992158]
[1764554036340,1.24422955,127.96,127.93,0.04992158]
[1764554036633,5.27556205,127.96,127.93,0.04992158]
[1764554036827,1.19,127.94,127.93,0.04992158]
[1764554041137,1.19,127.92,127.87,2.58030775]
[1764554041344,1.19,127.9,127.87,3.07]
[1764554041638,118.0,127.91,127.87,5.65030775]
[1764554041827,118.0,127.91,127.88,3.07]
[1764554042226,118.05313132,127.91,127.9,3.07]
[1764554042439,0.00313132,127.91,127.9,3.07]
[1764554044741,0.00313132,127.91,127.89,3.07]
[1764554050643,0.00313132,127.91,127.9,5.65030775]
[1764554053039,0.00313132,127.91,127.9,3.07]
[1764554060147,119.24,127.9,127.88,0.05696241]
[1764554060349,3.82030775,127.89,127.88,0.05696241]
[1764554060551,119.24,127.9,127.88,0.05696241]
[1764554060754,1.24,127.89,127.88,0.05696241]
[1764554061142,126.2765,127.9,127.88,0.05696241]
[1764554064861,128.85680775,127.9,127.88,0.05696241]
[1764554065168,128.86680775,127.9,127.88,0.05696241]
[1764554065367,118.0,127.89,127.88,0.05696241]
[1764554065562,119.25,127.89,127.88,0.05696241]
[1764554065766,125.16138554,127.89,127.88,0.05696241]
[1764554065966,1.25,127.87,127.82,3.11]
[1764554066159,121.83030775,127.87,127.82,3.11]
[1764554066866,0.05014711,127.86,127.84,3.11]
[1764554067468,1.30014711,127.86,127.83,3.16693455]
[1764554067970,0.05014711,127.86,127.83,3.16693455]
[1764554071175,0.00014711,127.86,127.85,3.11]
[1764554071478,2.58030775,127.91,127.85,3.11]
[1764554071479,118.0,127.91,127.85,3.11]
[1764554071679,118.0,127.91,127.87,3.11]
[1764554072379,1.3,127.9,127.8,3.11]
[1764554072579,1.3,127.9,127.87,3.11]
[1764554072980,1.35951501,127.9,127.87,3.16889021]
[1764554073278,0.05951501,127.9,127.87,3.16889021]
[1764554073474,0.05951501,127.9,127.89,3.11]
[1764554074469,0.05951501,127.9,127.89,5.69030775]
[1764554074675,118.0,127.94,127.9,3.11]
[1764554074875,119.36,127.94,127.9,3.11]
[1764554075276,1.36,127.9,127.87,3.11]
[1764554075477,1.36,127.9,127.86,5.69030775]
[1764554075683,1.41730829,127.89,127.87,0.0538269]
[1764554075884,3.99761604,127.89,127.87,0.0538269]
[1764554076480,1.41730829,127.89,127.87,0.0538269]
[1764554076679,3.99761604,127.89,127.87,0.0538269]
[1764554077079,1.36,127.88,127.87,0.0538269]
[1764554077478,3.94030775,127.88,127.87,0.0538269]
[1764554080588,1.36,127.86,127.83,3.11]
[1764554080779,7.0382,127.87,127.82,2.58030775]
[1764554080780,120.58030775,127.85,127.82,3.11]
[1764554081587,118.05295781,127.85,127.83,3.11]
[1764554084997,119.41295781,127.85,127.83,3.11]
[1764554085197,118.05295781,127.85,127.83,3.11]
[1764554089294,1.36,127.84,127.82,2.64015065]
[1764554089500,1.36,127.84,127.82,5.75015065]
[1764554090096,118.05295781,127.85,127.82,5.75015065]
[1764554090397,119.41295781,127.85,127.82,5.75015065]
[1764554091001,119.41295781,127.85,127.82,3.1698429]
[1764554092296,1.36,127.84,127.82,3.1698429]
[1764554093295,119.41295781,127.85,127.82,3.1698429]
[1764554097191,1.36,127.84,127.82,0.0598429]
[1764554097900,118.05295781,127.85,127.82,3.3798429]
[1764554098207,118.05295781,127.85,127.83,2.58030775]
[1764554098400,118.05295781,127.85,127.83,3.32]
[1764554099206,119.41295781,127.85,127.83,3.32]
[1764554099505,1.36,127.81,127.77,3.32]
[1764554100004,1.36,127.88,127.81,3.32]
[1764554100207,1.36,127.88,127.83,3.32]
[1764554100597,1.41981753,127.87,127.84,3.37292687]
[1764554101694,1.41981753,127.87,127.86,7.35634615]
[1764554101695,0.05981753,127.87,127.86,7.35634615]
[1764554101897,1.36,127.9,127.87,3.32]
[1764554102601,7.0355,127.92,127.87,3.32]
[1764554102906,8.53186104,127.97,127.92,3.32]
[1764554103100,6.06529612,127.96,127.92,3.32]
[1764554103300,1.42,127.98,127.92,3.32]
[1764554103496,6.06262009,127.97,127.92,3.32]
[1764554103702,1.42,127.97,127.92,3.32]
[1764554103999,0.05550045,127.96,127.93,3.36976541]
[1764554104208,1.47550045,127.96,127.93,3.36976541]
[1764554104809,1.47550045,127.96,127.93,0.04976541]
[1764554105312,1.47550045,127.96,127.93,3.36976541]
[1764554105700,0.05550045,127.96,127.93,3.36976541]
[1764554106507,1.47550045,127.96,127.93,3.36976541]
[1764554106708,0.05550045,127.96,127.93,3.36976541]
[1764554107808,1.47550045,127.96,127.93,0.04976541]
[1764554108414,4.03634615,127.95,127.93,0.04976541]
[1764554108618,1.42,127.94,127.93,0.04976541]
[1764554108818,1.42,127.93,127.85,3.32]
[1764554109026,1.42,127.92,127.85,10.3589]
[1764554109222,5.45634615,127.91,127.85,3.32]
[1764554109423,1.42,127.9,127.85,3.32]
[1764554109623,1.42,127.9,127.83,8.5]
[1764554109931,1.47424937,127.88,127.85,3.37553765]
[1764554110424,1.47424937,127.88,127.85,0.05553765]
[1764554114324,0.05424937,127.88,127.85,3.37553765]
[1764554115028,1.42,127.94,127.85,3.37553765]
[1764554115029,6.04769774,127.93,127.85,3.37553765]
[1764554115233,1.42,127.94,127.87,3.32]
[1764554115724,1.42,127.94,127.89,3.32]
[1764554116037,1.47301861,127.93,127.9,0.05020786]
[1764554117137,1.42,127.91,127.9,0.05020786]
[1764554117431,7.53805441,127.91,127.9,0.05020786]
[1764554120534,118.0,127.92,127.9,0.05020786]
[1764554121241,118.0,127.92,127.9,3.26020786]
[1764554121443,0.05301861,127.93,127.9,3.26020786]
[1764554122738,1.47301861,127.93,127.9,0.05020786]
[1764554122937,1.42,127.91,127.86,7.0384]
[1764554123236,1.42,127.91,127.86,10.2484]
[1764554123433,1.42,127.89,127.83,10.25]
[1764554123929,1.42,127.89,127.82,5.92]
[1764554123930,1.47275498,127.87,127.85,0.05113418]
[1764554125232,1.47275498,127.87,127.8,7.0415]
[1764554125840,1.47275498,127.87,127.8,10.3715]
[1764554126139,1.47275498,127.87,127.82,0.05288549]
[1764554126439,8.51115498,127.87,127.82,0.05288549]
[1764554126740,1.42,127.86,127.82,3.38288549]
[1764554126937,0.05275498,127.87,127.82,3.38288549]
[1764554127127,1.47275498,127.87,127.82,3.38288549]
[1764554127937,0.05275498,127.87,127.83,3.33]
[1764554130942,1.47275498,127.87,127.83,3.33]
[1764554131830,1.47275498,127.87,127.82,3.38288549]
[1764554132036,119.42,127.86,127.82,3.38288549]
[1764554134736,1.42,127.84,127.82,0.05288549]
[1764554134938,1.47979783,127.84,127.82,0.05288549]
[1764554135330,1.42,127.82,127.78,18.72]
[1764554135828,1.42,127.82,127.75,3.33]
[1764554136437,0.05800026,127.8,127.77,0.02179989]
[1764554136832,0.05800026,127.8,127.77,3.35179989]
[1764554137437,1.47800026,127.8,127.77,3.35179989]
[1764554137638,1.47800026,127.8,127.77,0.02179989]
[1764554141047,1.42,127.78,127.77,0.02179989]
[1764554142448,1.47800026,127.8,127.77,3.35179989]
[1764554142650,1.47800026,127.8,127.77,0.02179989]
[1764554142848,1.47800026,127.8,127.77,3.35179989]
[1764554143056,119.47800026,127.8,127.77,3.35179989]
[1764554143351,1.42,127.79,127.77,0.02179989]
[1764554144353,1.42,127.78,127.72,3.33]
[1764554144559,1.42,127.76,127.72,3.33]
[1764554145457,0.05000396,127.75,127.72,3.33]
[1764554150857,23.45,127.83,127.69,26.94]
[1764554150858,118.0,127.82,127.74,3.23]
[1764554151051,118.0,127.82,127.77,3.23]
[1764554151250,8.4991,127.86,127.79,3.23]
[1764554151747,0.0578062,127.84,127.81,3.28000396]
[1764554152650,0.0578062,127.84,127.83,3.23]
[1764554153548,0.0578062,127.84,127.81,3.28000396]
[1764554154258,1.5178062,127.84,127.81,0.05000396]
[1764554157053,0.0578062,127.84,127.81,3.28000396]
[1764554158052,0.0578062,127.84,127.82,7.0408]
[1764554158259,0.0578062,127.84,127.83,3.23]
[1764554158660,0.0578062,127.84,127.82,3.23]
[1764554159057,0.0578062,127.84,127.81,3.28000396]
[1764554160756,1.5178062,127.84,127.81,0.05000396]
[1764554162461,8.5579062,127.84,127.81,0.05000396]
[1764554162657,1.46,127.83,127.81,0.05000396]
[1764554164764,119.46,127.82,127.81,0.05000396]
[1764554165266,118.0,127.82,127.81,3.28000396]
[1764554165458,0.0578062,127.84,127.81,3.28000396]
[1764554168164,1.52,127.91,127.82,10.40820069]
[1764554168365,1.52,127.91,127.83,3.23]
[1764554168870,1.52,127.89,127.82,10.40820069]
[1764554169073,1.52,127.89,127.83,3.23]
[1764554169266,0.0540734,127.87,127.85,0.05906295]
[1764554169972,1.5740734,127.87,127.85,0.05906295]
[1764554170575,8.6122734,127.87,127.85,0.05906295]
[1764554170771,1.52,127.86,127.85,0.05906295]
[1764554170968,1.5740734,127.87,127.85,0.05906295]
[1764554171270,0.0540734,127.87,127.85,3.28906295]
[1764554171472,0.0540734,127.87,127.85,0.05906295]
[1764554172374,0.0540734,127.87,127.85,3.28906295]
[1764554173073,0.0540734,127.87,127.85,0.05906295]
[1764554173271,0.0540734,127.87,127.85,3.28906295]
[1764554176479,0.0540734,127.87,127.86,3.23]
[1764554176675,0.0540734,127.87,127.85,5.87093539]
[1764554179880,0.0540734,127.87,127.86,3.14]
[1764554181485,0.0540734,127.87,127.85,3.19906295]
[1764554186085,7.19047406,127.93,127.85,3.19906295]
[1764554186292,119.58,127.96,127.88,3.28]
[1764554186488,6.12821663,127.95,127.88,3.28]
[1764554186681,119.58,127.96,127.88,3.28]
[1764554186985,6.12800785,127.95,127.88,3.28]
[1764554187195,119.58,127.96,127.9,3.32982938]
[1764554187196,0.05362903,127.93,127.9,3.32982938]
[1764554187590,0.00362903,127.93,127.9,3.32982938]
[1764554187796,0.00362903,127.93,127.92,3.28]
[1764554188096,1.58,127.99,127.92,3.28]
[1764554188698,8.612,127.99,127.93,3.28]
[1764554188900,0.05521456,127.97,127.95,0.05605961]
[1764554189399,0.05521456,127.97,127.95,3.33605961]
[1764554190301,1.68521456,127.97,127.95,0.05605961]
[1764554190494,0.05521456,127.97,127.95,3.33605961]
[1764554190695,0.05521456,127.97,127.95,10.36955961]
[1764554190897,0.05521456,127.97,127.96,3.28]
[1764554192910,0.05521456,127.97,127.95,3.33605961]
[1764554195102,118.0,127.99,127.95,3.33605961]
[1764554195103,3.34,128.03,127.96,3.28]
[1764554195396,6.08957123,128.02,127.96,3.28]
[1764554195600,117.93,128.04,127.98,3.28]
[1764554195796,3.34,128.02,127.98,3.28]
[1764554195996,3.39827779,128.01,127.99,0.05039922]
[1764554196203,0.05523654,128.01,127.99,0.05659699]
[1764554196500,0.05523654,128.01,127.99,3.33659699]
[1764554196704,0.05523654,128.01,127.99,0.05659699]
[1764554197309,3.39523654,128.01,127.99,0.05659699]
[1764554197710,0.05523654,128.01,127.99,3.33659699]
[1764554199012,0.05523654,128.01,127.99,0.05659699]
[1764554199208,9.42058233,128.0,127.94,3.28]
[1764554199416,3.34,127.98,127.94,3.28]
[1764554199908,3.34,127.98,127.91,3.28]
[1764554200113,7.1729813,127.99,127.91,3.28]
[1764554200114,10.3728,127.97,127.91,3.28]
[1764554200418,0.05616544,127.95,127.93,0.05191802]
[1764554200618,0.05616544,127.95,127.93,3.33191802]
[1764554202119,3.39616544,127.95,127.93,0.05191802]
[1764554206326,117.93,127.94,127.93,0.05191802]
[1764554207928,114.59,127.94,127.93,0.05191802]
[1764554208328,120.51094438,127.94,127.93,0.05191802]
[1764554209829,3.14,127.93,127.87,10.318]
[1764554210128,2.58094438,127.91,127.88,3.28]
[1764554211026,2.58094438,127.91,127.88,3.33239683]
[1764554211027,0.05548759,127.91,127.88,3.33239683]
[1764554211631,0.05548759,127.91,127.89,3.28]
[1764554213232,0.05548759,127.91,127.88,0.05239683]
[1764554213233,3.14,127.9,127.88,0.05239683]
[1764554213727,2.58094438,127.89,127.88,0.05239683]
[1764554214128,5.72094438,127.89,127.88,0.05239683]
[1764554214327,5.72094438,127.89,127.83,3.28]
[1764554214927,5.72094438,127.89,127.84,3.28]
[1764554215330,0.05632045,127.88,127.86,3.28]
[1764554219128,5.72094438,127.94,127.89,3.28]
[1764554220035,0.05069455,127.93,127.9,3.3331401]
[1764554220235,3.19069455,127.93,127.9,3.3331401]
[1764554223133,3.19069455,127.93,127.9,0.0531401]
[1764554224131,118.0,127.92,127.9,0.0531401]
[1764554224642,118.0,127.92,127.9,3.3331401]
[1764554226838,0.05069455,127.93,127.9,3.3331401]
[1764554227732,10.1724,127.98,127.92,3.28]
[1764554228739,3.19874142,127.96,127.94,0.05836478]
[1764554229036,3.19222823,127.96,127.94,0.05942394]
[1764554229239,121.19222823,127.96,127.94,0.05942394]
[1764554229431,3.14,127.94,127.88,3.28]
[1764554229929,3.14,127.94,127.85,10.9]
[1764554230130,3.14,127.94,127.86,3.28]
[1764554230643,0.05973724,127.91,127.89,3.33632634]
[1764554230942,3.19973724,127.91,127.89,0.05632634]
[1764554231342,3.14,127.9,127.89,0.05632634]
[1764554231536,0.05973724,127.91,127.89,0.05632634]
[1764554231743,0.05973724,127.91,127.89,3.33632634]
[1764554232045,3.19973724,127.91,127.89,0.05632634]
[1764554235852,0.05973724,127.91,127.89,3.33632634]
[1764554236042,118.0,127.94,127.89,3.33632634]
[1764554236242,3.14,127.97,127.89,3.33632634]
[1764554236443,6.09715595,127.96,127.91,3.28]
[1764554236642,9.55528858,128.01,127.91,3.28]
[1764554236643,10.30646644,128.01,127.91,3.28]
[1764554236844,9.23878292,128.0,127.91,3.28]
[1764554237037,0.06008543,127.97,127.94,10.3703747]
[1764554237257,0.06008543,127.97,127.95,3.28]
[1764554238443,0.06008543,127.97,127.96,3.28]
[1764554241148,10.4401,128.02,127.96,3.28]
[1764554242146,0.05197713,128.0,127.98,0.05319392]
[1764554242856,3.46197713,128.0,127.98,0.05319392]
[1764554243761,0.05197713,128.0,127.98,0.05319392]
[1764554245756,3.46197713,128.0,127.98,0.05319392]
[1764554247359,3.46197713,128.0,127.98,3.40319392]
[1764554247360,0.05197713,128.0,127.98,3.40319392]
[1764554249560,0.05197713,128.0,127.99,3.36]
[1764554250357,3.31197713,128.0,127.98,0.05319392]
[1764554250666,0.05197713,128.0,127.98,3.41319392]
[1764554252547,3.31197713,128.0,127.98,0.05319392]
[1764554253256,0.05197713,128.0,127.98,3.41319392]
[1764554253463,3.31197713,128.0,127.98,0.05319392]
[1764554255566,121.26,127.99,127.98,0.05319392]
[1764554255861,118.0,127.99,127.98,0.05319392]
[1764554256466,118.0,127.99,127.98,3.41319392]
[1764554256767,10.2871,128.08,128.0,3.36]
[1764554257060,3.26,128.08,128.0,3.36]
[1764554257253,3.26,128.08,128.01,3.36]
[1764554257865,0.05390661,128.06,128.03,3.40943584]
[1764554258160,3.31390661,128.06,128.03,0.04943584]
[1764554259363,3.26,128.04,128.03,0.04943584]
[1764554261256,10.2886,128.05,128.03,0.04943584]
[1764554261557,3.26,128.04,128.03,0.04943584]
[1764554262257,3.26,128.04,127.98,7.0317]
[1764554262456,3.26,128.02,127.98,10.3917]
[1764554263268,0.05977761,128.01,127.99,0.05595088]
[1764554263652,3.31977761,128.01,127.99,0.05595088]
[1764554265265,121.26,128.0,127.99,0.05595088]
[1764554269266,0.05977761,128.01,127.99,3.41595088]
[1764554271864,0.05977761,128.01,127.99,10.44705088]
[1764554272170,0.05977761,128.01,128.0,3.13]
[1764554275473,3.33977761,128.01,127.99,0.05595088]
[1764554275673,0.05977761,128.01,127.99,3.18595088]
[1764554276267,0.05977761,128.01,127.99,10.21745088]
[1764554276768,118.0,128.05,128.02,3.13]
[1764554276969,9.55528858,128.11,128.02,3.13]
[1764554276970,128.44646644,128.12,128.02,3.13]
[1764554277162,6.10069968,128.11,128.02,3.13]
[1764554277368,121.28,128.12,128.06,3.13]
[1764554277369,9.38069968,128.1,128.06,3.13]
[1764554277567,3.28,128.1,128.06,3.13]
[1764554277967,3.33637003,128.09,128.07,0.05531082]
[1764554278472,0.05637003,128.09,128.07,0.05531082]
[1764554278866,3.33637003,128.09,128.07,0.05531082]
[1764554279671,3.28,128.08,128.07,0.05531082]
[1764554279973,9.38206212,128.08,128.07,0.05531082]
[1764554280170,9.38206212,128.08,128.0,10.1606]
[1764554280171,3.28,128.07,128.0,10.1606]
[1764554280571,135.47116644,128.12,128.04,7.0285]
[1764554280877,9.38415493,128.11,128.05,3.13]
[1764554281086,0.05270936,128.09,128.07,0.05251431]
[1764554281679,3.33270936,128.09,128.07,0.05251431]
[1764554281880,9.39154552,128.08,128.07,0.00251431]
[1764554282080,3.28,128.07,128.01,10.16]
[1764554282286,118.0,128.06,128.02,3.13]
[1764554282574,3.28,128.1,128.03,3.13]
[1764554282784,3.28,128.08,128.03,3.13]
[1764554282984,3.33017928,128.07,128.04,0.05989578]
[1764554283179,3.33017928,128.07,128.04,3.18989578]
[1764554283682,3.33017928,128.07,128.04,0.05989578]
[1764554284479,3.33017928,128.07,128.04,3.18989578]
[1764554285688,3.33017928,128.07,128.04,0.05989578]
[1764554289090,0.05017928,128.07,128.04,3.18989578]
[1764554289493,3.33017928,128.07,128.04,3.18989578]
[1764554290691,3.33017928,128.07,128.04,0.05989578]
[1764554293295,3.33017928,128.07,128.04,3.18989578]
[1764554293487,0.05017928,128.07,128.04,3.18989578]
[1764554293687,0.05017928,128.07,128.04,10.21849578]
[1764554293889,0.00017928,128.07,128.05,3.13]
[1764554294089,3.28,128.14,128.06,7.15383357]
[1764554294290,3.28,128.14,128.08,3.13]
[1764554295087,3.33295555,128.12,128.1,0.05932248]
[1764554300503,0.05295555,128.12,128.1,3.14932248]
[1764554300997,3.1,128.15,128.1,3.14932248]
[1764554301501,3.1,128.19,128.13,3.09]
[1764554302003,3.15791996,128.17,128.15,0.05763932]
[1764554305700,3.1,128.16,128.1,10.1152]
[1764554306504,121.1,128.16,128.12,3.09]
[1764554306805,0.0502242,128.15,128.13,0.05101902]
[1764554307208,0.0502242,128.15,128.13,3.14101902]
[1764554307899,0.0502242,128.15,128.13,0.05101902]
[1764554308101,3.1502242,128.15,128.13,0.05101902]
[1764554312314,3.29,128.14,128.13,0.05101902]
[1764554314215,3.29,128.13,128.07,3.22]
[1764554314411,3.29,128.13,128.04,25.32]
[1764554314612,23.45,128.16,128.04,25.32]
[1764554314613,3.29,128.11,128.05,3.22]
[1764554314812,3.29,128.11,128.06,3.22]
[1764554315209,0.05681205,128.1,128.07,3.27000147]
[1764554315415,3.34681205,128.1,128.07,0.05000147]
[1764554316410,3.34681205,128.1,128.07,3.27000147]
[1764554317519,3.34681205,128.1,128.07,0.05000147]
[1764554319007,10.37241205,128.1,128.07,0.05000147]
[1764554319218,3.29,128.09,128.07,0.05000147]
[1764554319808,3.29,128.08,128.07,0.05000147]
[1764554323714,3.29,128.07,128.02,7.0297]
[1764554323910,3.29,128.06,128.02,10.2497]
[1764554324514,2.57474868,128.07,128.0,10.2509]
[1764554324515,3.29,128.04,128.0,10.2509]
[1764554324722,0.05462175,128.03,128.01,0.05691084]
[1764554324921,3.34462175,128.03,128.01,0.05691084]
[1764554326124,3.29,128.02,128.01,0.05691084]
[1764554327224,3.29,128.01,127.96,5.79474868]
[1764554327423,3.29,128.01,127.97,3.22]
[1764554328417,3.3417281,128.0,127.98,0.05397084]
[1764554329518,0.0517281,128.0,127.98,3.27397084]
[1764554329727,0.0517281,128.0,127.98,5.84871952]
[1764554330317,0.0517281,128.0,127.98,3.27397084]
[1764554333123,0.0517281,128.0,127.98,3.33397084]
[1764554334426,0.0517281,128.0,127.99,5.85474868]
[1764554334626,0.0517281,128.0,127.99,12.88624868]
[1764554335126,0.0517281,128.0,127.99,5.85474868]
[1764554335329,3.1817281,128.0,127.98,0.05397084]
[1764554336824,121.13,127.99,127.98,0.05397084]
[1764554340435,3.13,127.98,127.92,93.62]
[1764554340733,3.13,127.96,127.92,96.9]
[1764554341330,3.13,127.96,127.92,93.62]
[1764554341635,3.18533673,127.95,127.93,0.05800307]
[1764554342831,3.18533673,127.95,127.87,3.28]
[1764554343034,3.13,127.95,127.87,3.28]
[1764554343727,0.05089838,127.92,127.87,3.28]
[1764554344032,3.18089838,127.92,127.87,3.28]
[1764554345432,3.18089838,127.92,127.86,7.0385]
[1764554346135,3.18089838,127.92,127.86,10.3185]
[1764554348932,3.13,127.9,127.83,10.3199]
[1764554349134,0.05723225,127.88,127.84,3.28]
[1764554350033,0.05723225,127.88,127.86,3.28]
[1764554350235,3.13,127.93,127.86,3.28]
[1764554351136,0.0548169,127.91,127.88,0.05483687]
[1764554351332,0.0548169,127.91,127.88,3.33483687]
[1764554357443,0.0548169,127.91,127.9,3.28]
[1764554358345,0.0548169,127.91,127.9,7.31035473]
[1764554359443,0.0548169,127.91,127.9,3.28]
[1764554365447,3.2748169,127.91,127.88,0.05483687]
[1764554365848,3.2748169,127.91,127.88,3.25483687]
[1764554367851,3.2748169,127.91,127.88,0.05483687]
[1764554371344,3.22,127.9,127.88,0.05483687]
[1764554372651,7.0908169,127.91,127.88,3.25483687]
[1764554372652,0.0548169,127.91,127.88,3.25483687]
[1764554373245,0.0548169,127.91,127.89,4.03035473]
[1764554373446,0.0548169,127.91,127.9,3.2]
[1764554373842,3.2748169,127.91,127.88,3.25483687]
[1764554374142,121.22,127.9,127.88,0.05483687]
[1764554374649,121.22,127.9,127.88,3.25483687]
[1764554374949,3.22,127.89,127.88,0.05483687]
[1764554375454,3.22,127.89,127.85,3.2]
[1764554375849,3.22,127.89,127.83,3.2]
[1764554376050,3.22,127.87,127.83,3.2]
[1764554376651,0.0594462,127.86,127.83,3.2]
[1764554380055,0.0594462,127.86,127.83,10.2401]
[1764554380253,0.0594462,127.86,127.84,3.2]
[1764554382264,118.0,127.9,127.85,3.2]
[1764554382755,7.0346,127.94,127.87,3.2]
[1764554382961,6.04979611,127.93,127.87,3.2]
[1764554383156,0.05712538,127.91,127.9,3.2]
[1764554385566,10.40902423,127.99,127.91,3.2]
[1764554385859,6.05923958,127.98,127.94,3.2]
[1764554386052,10.2511,128.0,127.94,3.2]
[1764554386249,3.22,127.98,127.94,3.2]
[1764554386463,0.05645817,127.97,127.95,0.05022411]
[1764554386854,3.27645817,127.97,127.95,0.05022411]
[1764554388763,3.22,127.96,127.9,3.2]
[1764554389865,0.05845659,127.94,127.92,3.35319363]
[1764554393567,0.05845659,127.94,127.93,3.3]
[1764554394857,0.05845659,127.94,127.92,0.05319363]
[1764554395062,0.05845659,127.94,127.92,3.35319363]
[1764554395266,3.32845659,127.94,127.92,0.05319363]
[1764554397280,10.36295659,127.94,127.92,0.05319363]
[1764554397468,0.05845659,127.94,127.87,3.3]
[1764554397661,118.0,127.96,127.87,3.3]
[1764554397972,128.3033,127.96,127.9,3.3]